bitfinex-derivatives/quotes_SOLF0:USTF0_20241231
["timestamp","ask_amount","ask_price","bid_price","bid_amount"]
[1735617890114,8.51727112,190.33,190.25,8.51727112]
[1735617890816,2.98,190.34,190.27,8.51727112]
[1735617891315,2.6317,190.32,190.28,2.6322]
[1735617896417,2.98,190.34,190.27,8.51727112]
[1735617896616,8.51727112,190.33,190.22,2.98]
[1735617896817,8.51727112,190.33,190.24,8.51727112]
[1735617897018,2.98,190.34,190.26,8.51727112]
[1735617897218,2.632,190.3,190.26,8.51727112]
[1735617897920,2.632,190.3,190.26,11.14977112]
[1735617900420,2.6324,190.28,190.26,8.51727112]
[1735617900618,8.51727112,190.31,190.24,8.51727112]
[1735617901018,2.6324,190.28,190.24,11.15007112]
[1735617901211,2.98,190.32,190.26,8.51727112]
[1735617901614,2.98,190.32,190.24,8.51727112]
[1735617902620,8.51727112,190.27,190.2,8.51727112]
[1735617902821,2.98,190.26,190.2,8.51727112]
[1735617903317,2.98,190.26,190.17,4.7276]
[1735617903510,8.51727112,190.25,190.18,8.51727112]
[1735617904720,2.633,190.23,190.19,2.6335]
[1735617904919,2.633,190.23,190.18,8.51727112]
[1735617905813,2.98,190.26,190.2,8.51727112]
[1735617906018,2.6328,190.24,190.2,8.51727112]
[1735617907017,7.30966934,190.28,190.22,8.51727112]
[1735617907221,7.30966934,190.28,190.12,2.98]
[1735617907222,2.98,190.27,190.24,8.51727112]
[1735617907422,7.30966934,190.28,190.24,8.51727112]
[1735617908516,7.30966934,190.28,190.24,11.15007112]
[1735617909224,9.94196934,190.28,190.24,8.51727112]
[1735617909723,9.94196934,190.28,190.24,11.15007112]
[1735617910426,2.6321,190.29,190.25,2.6327]
[1735617910620,2.6321,190.29,190.26,8.51727112]
[1735617911926,2.98,190.31,190.26,8.51727112]
[1735617912221,2.6324,190.27,190.24,8.51727112]
[1735617912423,11.49727112,190.31,190.24,8.51727112]
[1735617914618,11.49727112,190.31,190.22,11.15027112]
[1735617914824,8.51727112,190.27,190.19,4.829]
[1735617915024,2.98,190.26,190.2,8.51727112]
[1735617915426,2.98,190.26,190.22,8.51727112]
[1735617916525,2.6328,190.25,190.22,8.51727112]
[1735617917222,2.98,190.26,190.22,11.15037112]
[1735617917915,5.6126,190.26,190.22,11.15037112]
[1735617918226,2.98,190.26,190.22,8.51727112]
[1735617919428,2.6328,190.25,190.22,8.51727112]
[1735617922424,2.98,190.26,190.22,8.51727112]
[1735617922627,2.6324,190.28,190.24,8.51727112]
[1735617923425,2.6324,190.28,190.24,11.14997112]
[1735617924932,2.6324,190.27,190.24,8.51727112]
[1735617926129,8.51727112,190.3,190.24,8.51727112]
[1735617926130,2.6325,190.26,190.24,8.51727112]
[1735617926731,8.51727112,190.3,190.21,2.6332]
[1735617926931,8.51727112,190.3,190.21,11.15047112]
[1735617927132,8.51727112,190.3,190.23,8.51727112]
[1735617927332,8.51727112,190.3,190.24,2.6327]
[1735617928328,2.98,190.31,190.25,8.51727112]
[1735617929530,2.6321,190.29,190.25,11.14987112]
[1735617931230,2.632,190.3,190.25,8.51727112]
[1735617931433,2.98,190.33,190.27,8.51727112]
[1735617931824,8.51727112,190.34,190.27,8.51727112]
[1735617932025,11.49727112,190.34,190.27,8.51727112]
[1735617933237,2.6318,190.32,190.27,11.14957112]
[1735617933440,11.49727112,190.34,190.27,11.14957112]
[1735617934534,2.6319,190.31,190.27,11.14957112]
[1735617942440,2.6319,190.31,190.27,8.51727112]
[1735617942641,2.6319,190.31,190.28,2.6322]
[1735617943242,8.51727112,190.32,190.19,4.829]
[1735617943540,2.6323,190.28,190.24,8.51727112]
[1735617944547,8.51727112,190.28,190.22,8.51727112]
[1735617946548,2.6325,190.26,190.23,2.6329]
[1735617946857,2.6325,190.26,190.2,8.51727112]
[1735617948453,8.51727112,190.28,190.2,8.51727112]
[1735617948654,2.6329,190.24,190.2,8.51727112]
[1735617949051,8.51727112,190.26,190.2,8.51727112]
[1735617949254,2.633,190.23,190.2,8.51727112]
[1735617949959,8.51727112,190.26,190.2,8.51727112]
[1735617950158,2.6328,190.24,190.2,8.51727112]
[1735617950754,2.6328,190.24,190.19,2.6335]
[1735617951559,5.6128,190.24,190.19,2.6335]
[1735617952862,5.6128,190.24,190.19,11.15077112]
[1735617958164,2.98,190.24,190.19,8.51727112]
[1735617958361,2.98,190.24,190.2,2.6332]
[1735617959059,2.633,190.23,190.19,11.15077112]
[1735617959265,2.98,190.24,190.19,8.51727112]
[1735617959965,2.98,190.24,190.2,2.6332]
[1735617960166,2.98,190.27,190.21,8.51727112]
[1735617960365,2.98,190.28,190.23,8.51727112]
[1735617960567,8.51727112,190.29,190.23,8.51727112]
[1735617960868,14.12937112,190.29,190.25,2.6327]
[1735617961666,11.14937112,190.29,190.25,2.6327]
[1735617961865,2.6323,190.28,190.24,2.6328]
[1735617963061,2.98,190.3,190.23,8.51727112]
[1735617963261,2.6325,190.27,190.23,8.51727112]
[1735617964067,8.51727112,190.29,190.23,8.51727112]
[1735617964268,8.51727112,190.27,190.21,8.51727112]
[1735617964969,8.51727112,190.29,190.21,8.51727112]
[1735617965563,8.51727112,190.29,190.23,8.51727112]
[1735617966566,2.6324,190.28,190.24,2.6328]
[1735617970168,5.6121,190.3,190.25,2.6325]
[1735617970469,5.6121,190.3,190.25,8.51727112]
[1735617971070,2.6321,190.3,190.25,8.51727112]
[1735617971468,2.6321,190.3,190.26,2.6325]
[1735617971972,2.6319,190.31,190.27,8.51727112]
[1735617983876,11.49727112,190.34,190.27,8.51727112]
[1735617984079,2.632,190.3,190.27,8.51727112]
[1735617987082,11.49727112,190.34,190.28,2.6322]
[1735617987083,2.6317,190.32,190.28,2.6322]
[1735617987976,7.30966934,190.37,190.29,2.6321]
[1735617987977,2.6316,190.33,190.29,2.6321]
[1735617988182,2.98,190.35,190.29,8.51727112]
[1735617988380,15.82694046,190.37,190.29,8.51727112]
[1735617988584,2.6314,190.34,190.3,2.6319]
[1735617988881,18.80694046,190.37,190.31,8.51727112]
[1735617988882,8.51727112,190.37,190.31,8.51727112]
[1735617989597,2.6313,190.35,190.31,11.14897112]
[1735617989797,22.54843467,190.38,190.31,8.51727112]
[1735617990098,15.23876533,190.38,190.31,8.51727112]
[1735617990298,2.6312,190.36,190.33,8.51727112]
[1735617991000,6.37239421,190.38,190.33,11.14877112]
[1735617992291,8.51727112,190.4,190.35,8.51727112]
[1735617992292,2.6307,190.4,190.35,8.51727112]
[1735617992594,2.98,190.41,190.35,8.51727112]
[1735617992999,8.51727112,190.42,190.35,8.51727112]
[1735617993198,2.6309,190.39,190.35,8.51727112]
[1735617994601,11.49727112,190.42,190.35,8.51727112]
[1735617994800,2.6309,190.38,190.35,8.51727112]
[1735617995897,2.6311,190.37,190.35,8.51727112]
[1735617996197,8.51727112,190.36,190.28,13.22667112]
[1735617996396,8.51727112,190.34,190.28,10.13967112]
[1735617996598,8.51727112,190.34,190.28,8.51727112]
[1735617996998,2.632,190.3,190.28,8.51727112]
[1735617998005,8.51727112,190.34,190.28,8.51727112]
[1735617998204,2.6321,190.29,190.28,8.51727112]
[1735618000604,2.6324,190.28,190.23,5.6129]
[1735618000800,2.6324,190.28,190.23,2.6329]
[1735618001005,2.6324,190.28,190.25,8.51727112]
[1735618006209,2.6325,190.26,190.23,8.51727112]
[1735618009009,2.6325,190.26,190.25,8.51727112]
[1735618009706,2.6325,190.26,190.23,8.51727112]
[1735618011512,2.98,190.31,190.23,8.51727112]
[1735618011807,2.6327,190.25,190.23,8.51727112]
[1735618012907,8.51727112,190.3,190.23,8.51727112]
[1735618013112,2.6326,190.26,190.23,8.51727112]
[1735618013914,8.51727112,190.3,190.23,8.51727112]
[1735618014111,2.6327,190.25,190.23,8.51727112]
[1735618017312,11.49727112,190.31,190.23,8.51727112]
[1735618017612,2.6326,190.26,190.23,8.51727112]
[1735618018318,2.6329,190.24,190.22,8.51727112]
[1735618018612,8.51727112,190.28,190.22,8.51727112]
[1735618019404,2.6329,190.23,190.22,8.51727112]
[1735618021414,2.98,190.26,190.22,8.51727112]
[1735618021711,4.5213,190.3,190.24,8.51727112]
[1735618022717,2.6323,190.28,190.24,8.51727112]
[1735618022913,2.98,190.3,190.24,8.51727112]
[1735618023313,2.98,190.32,190.24,8.51727112]
[1735618023513,2.6322,190.29,190.24,11.14997112]
[1735618024111,2.98,190.32,190.24,11.14997112]
[1735618024112,2.6323,190.28,190.24,11.14997112]
[1735618024515,8.51727112,190.31,190.24,8.51727112]
[1735618024921,2.632,190.3,190.24,8.51727112]
[1735618025122,8.51727112,190.31,190.24,11.15007112]
[1735618025818,2.6323,190.29,190.24,11.15007112]
[1735618026825,2.6323,190.28,190.24,11.15007112]
[1735618027519,2.6324,190.27,190.24,8.51727112]
[1735618028420,2.6324,190.27,190.11,43.04082584]
[1735618028421,8.51727112,190.29,190.11,43.04082584]
[1735618028625,2.6331,190.23,190.2,8.51727112]
[1735618029016,11.49727112,190.27,190.2,8.51727112]
[1735618029225,2.6328,190.25,190.22,8.51727112]
[1735618030429,2.98,190.31,190.24,8.51727112]
[1735618031022,32.18547421,190.31,190.24,8.51727112]
[1735618031928,2.98,190.31,190.24,8.51727112]
[1735618032530,2.6324,190.28,190.24,11.15007112]
[1735618033728,2.6321,190.29,190.26,8.51727112]
[1735618033929,8.51727112,190.3,190.21,2.6332]
[1735618034223,8.51727112,190.3,190.23,8.51727112]
[1735618034423,2.6325,190.27,190.23,11.15017112]
[1735618034729,2.6325,190.27,190.23,8.51727112]
[1735618035627,2.6326,190.26,190.23,8.51727112]
[1735618036329,11.49727112,190.31,190.23,8.51727112]
[1735618036522,2.6324,190.27,190.23,8.51727112]
[1735618036723,2.6324,190.27,190.23,11.15017112]
[1735618037331,7.30966934,190.3,190.23,8.51727112]
[1735618037531,2.6325,190.26,190.23,8.51727112]
[1735618038532,11.49727112,190.31,190.23,8.51727112]
[1735618038734,8.51727112,190.29,190.23,8.51727112]
[1735618039330,37.72274533,190.29,190.23,8.51727112]
[1735618039834,2.6328,190.24,190.23,8.51727112]
[1735618040133,2.6328,190.24,190.21,8.51727112]
[1735618040331,37.72274533,190.29,190.21,8.51727112]
[1735618040634,2.6331,190.22,190.19,8.51727112]
[1735618042028,11.49727112,190.25,190.13,1.61]
[1735618042228,8.51727112,190.23,190.17,8.51727112]
[1735618043434,2.6336,190.18,190.17,8.51727112]
[1735618045132,8.51727112,190.21,190.15,8.51727112]
[1735618045332,2.6339,190.16,190.15,8.51727112]
[1735618048534,2.6339,190.16,190.13,10.12727112]
[1735618049830,2.634,190.16,190.13,10.12727112]
[1735618052132,8.51727112,190.17,189.98,29.15393601]
[1735618052333,8.51727112,190.15,190.05,3.0334]
[1735618052532,11.49727112,190.15,190.05,6.0134]
[1735618052728,11.49727112,190.15,190.05,3.0334]
[1735618053037,8.51727112,190.13,190.05,3.0334]
[1735618053227,2.6352,190.07,190.05,11.55067112]
[1735618053627,8.51727112,190.11,189.99,1.5607]
[1735618053930,8.51727112,190.09,189.99,3.1098]
[1735618054136,11.49727112,190.09,190.02,8.51727112]
[1735618054445,2.6354,190.06,190.02,8.51727112]
[1735618054928,2.98,190.09,190.04,8.51727112]
[1735618055130,2.6352,190.07,190.04,8.51727112]
[1735618055335,2.98,190.09,190.04,8.51727112]
[1735618055731,2.98,190.09,190.06,8.51727112]
[1735618056531,2.635,190.08,190.06,8.51727112]
[1735618057941,2.6349,190.1,190.06,8.51727112]
[1735618058745,2.98,190.11,190.06,8.51727112]
[1735618059044,2.98,190.11,189.99,3.1098]
[1735618059245,2.98,190.11,190.04,8.51727112]
[1735618060239,8.51727112,190.1,190.04,8.51727112]
[1735618060945,8.51727112,190.08,190.02,8.51727112]
[1735618061546,2.6357,190.04,190.0,8.51727112]
[1735618062350,2.6359,190.02,190.0,8.51727112]
[1735618063852,11.49727112,190.06,189.99,1.5607]
[1735618064251,11.49727112,190.06,189.98,9.99047112]
[1735618064853,8.51727112,190.04,189.98,8.51727112]
[1735618065046,8.51727112,190.04,189.96,8.51727112]
[1735618065852,2.6359,190.02,189.96,8.51727112]
[1735618066056,8.51727112,190.04,189.96,8.51727112]
[1735618066453,11.49727112,190.06,189.98,8.51727112]
[1735618066952,2.6359,190.02,189.98,8.51727112]
[1735618069156,11.49727112,190.06,189.98,8.51727112]
[1735618069357,2.6357,190.03,189.98,11.15367112]
[1735618069560,11.49727112,190.06,189.98,8.51727112]
[1735618070160,2.636,190.01,189.98,8.51727112]
[1735618074057,2.6362,190.0,189.98,8.51727112]
[1735618076360,11.49727112,190.06,189.98,8.51727112]
[1735618077665,2.6361,190.01,189.98,8.51727112]
[1735618080869,2.6362,190.0,189.98,8.51727112]
[1735618081058,8.51727112,190.04,189.95,4.1614]
[1735618081262,8.51727112,190.04,189.97,8.51727112]
[1735618081566,2.6359,190.02,189.97,8.51727112]
[1735618081767,8.51727112,190.04,189.97,8.51727112]
[1735618082462,2.6362,190.0,189.97,8.51727112]
[1735618085070,2.6362,190.0,189.96,2.6366]
[1735618085272,2.6362,190.0,189.96,11.15387112]
[1735618086172,2.6362,190.0,189.98,8.51727112]
[1735618086366,2.636,190.02,189.98,8.51727112]
[1735618087072,2.636,190.02,189.98,11.15367112]
[1735618087872,2.636,190.02,189.98,8.51727112]
[1735618088573,2.6361,190.01,189.98,8.51727112]
[1735618093374,7.30966934,190.08,190.0,8.51727112]
[1735618093573,7.30966934,190.08,190.04,8.51727112]
[1735618094274,2.6353,190.06,190.04,8.51727112]
[1735618095075,2.6353,190.06,190.02,8.51727112]
[1735618098583,8.51727112,190.09,190.02,8.51727112]
[1735618098780,2.6355,190.05,190.02,8.51727112]
[1735618102182,8.51727112,190.07,190.0,8.51727112]
[1735618103476,2.636,190.02,190.0,8.51727112]
[1735618104787,2.6361,190.0,189.98,8.51727112]
[1735618106483,11.49727112,190.05,189.95,4.1613]
[1735618106685,2.6363,189.99,189.96,8.51727112]
[1735618110889,8.51727112,190.03,189.94,1.4738]
[1735618111084,8.51727112,190.03,189.94,4.1107]
[1735618111291,8.51727112,190.03,189.96,8.51727112]
[1735618113387,2.636,190.01,189.98,8.51727112]
[1735618113593,11.49727112,190.05,189.98,8.51727112]
[1735618114388,2.6359,190.02,189.98,8.51727112]
[1735618115393,2.6357,190.04,189.98,11.15367112]
[1735618115591,29.20547421,190.07,190.0,8.51727112]
[1735618115793,29.20547421,190.07,190.02,8.51727112]
[1735618116392,2.6354,190.06,190.02,8.51727112]
[1735618116792,19.60888144,190.09,190.02,8.51727112]
[1735618117291,2.6356,190.05,190.02,8.51727112]
[1735618117495,19.60888144,190.09,190.02,8.51727112]
[1735618117695,8.51727112,190.07,190.0,8.51727112]
[1735618117989,2.6358,190.03,190.0,8.51727112]
[1735618118590,2.6359,190.02,190.0,8.51727112]
[1735618120695,2.6359,190.02,189.98,8.51727112]
[1735618122995,2.6363,189.99,189.96,8.51727112]
[1735618125594,8.51727112,190.03,189.96,8.51727112]
[1735618125794,2.98,190.04,189.98,8.51727112]
[1735618127200,2.6361,190.01,189.98,8.51727112]
[1735618131797,2.6361,190.01,189.96,11.15397112]
[1735618135804,8.51727112,190.05,189.98,8.51727112]
[1735618136007,2.6359,190.02,189.98,8.51727112]
[1735618137400,2.6359,190.02,189.98,11.15367112]
[1735618137606,2.6359,190.02,189.98,8.51727112]
[1735618140401,2.6357,190.03,189.98,11.15357112]
[1735618140602,2.6357,190.03,189.94,5.9409]
[1735618140603,7.30966934,190.07,190.0,8.51727112]
[1735618140906,18.80694046,190.07,190.0,8.51727112]
[1735618141408,2.6355,190.05,190.01,2.6359]
[1735618141596,2.6355,190.05,190.0,8.51727112]
[1735618142605,2.6353,190.07,190.02,8.51727112]
[1735618143004,2.6353,190.06,190.02,11.15317112]
[1735618143202,8.51727112,190.08,190.02,8.51727112]
[1735618144406,2.6354,190.06,190.02,8.51727112]
[1735618145798,8.51727112,190.08,190.02,8.51727112]
[1735618146100,2.6355,190.05,190.02,8.51727112]
[1735618147901,8.51727112,190.08,190.02,8.51727112]
[1735618148108,2.6352,190.07,190.04,8.51727112]
[1735618149302,2.6354,190.06,190.04,8.51727112]
[1735618150410,2.6354,190.06,190.02,8.51727112]
[1735618150810,2.6352,190.07,190.02,11.15307112]
[1735618152110,2.6354,190.06,190.02,11.15307112]
[1735618156414,2.6354,190.06,190.02,8.51727112]
[1735618156620,3.54001032,190.09,190.04,8.51727112]
[1735618156915,3.54001032,190.09,190.07,8.51727112]
[1735618157117,2.6345,190.12,190.07,8.51727112]
[1735618157419,2.6345,190.12,190.09,8.51727112]
[1735618157613,29.20547421,190.13,190.09,8.51727112]
[1735618157614,29.20547421,190.13,190.1,2.6347]
[1735618157814,2.98,190.16,190.1,2.6347]
[1735618158014,2.98,190.16,190.11,8.51727112]
[1735618158318,2.98,190.16,190.1,11.15197112]
[1735618159511,2.6341,190.15,190.1,11.15197112]
[1735618161019,2.6342,190.14,190.1,2.6347]
[1735618161221,8.51727112,190.17,190.11,8.51727112]
[1735618162519,2.6345,190.12,190.11,8.51727112]
[1735618163322,2.6343,190.13,190.11,8.51727112]
[1735618163822,2.6342,190.15,190.11,8.51727112]
[1735618164017,2.6342,190.15,190.05,2.98]
[1735618164018,3.2194,190.2,190.13,8.51727112]
[1735618164319,8.51727112,190.21,190.15,8.51727112]
[1735618165022,2.6337,190.18,190.15,8.51727112]
[1735618165222,8.51727112,190.21,190.13,8.51727112]
[1735618165422,8.51727112,190.19,190.13,8.51727112]
[1735618166426,2.6341,190.15,190.13,8.51727112]
[1735618170229,11.49727112,190.21,190.13,8.51727112]
[1735618170530,2.98,190.21,190.15,8.51727112]
[1735618171128,1.5312,190.22,190.17,8.51727112]
[1735618171335,2.98,190.23,190.17,8.51727112]
[1735618171526,6.3745537,190.23,190.17,8.51727112]
[1735618171721,2.6333,190.21,190.17,8.51727112]
[1735618171928,3.3945537,190.23,190.19,8.51727112]
[1735618172324,3.3945537,190.23,190.21,8.51727112]
[1735618173328,74.65320809,190.28,190.21,8.51727112]
[1735618173530,66.13593697,190.28,190.23,8.51727112]
[1735618173728,58.82626763,190.28,190.23,8.51727112]
[1735618174632,2.6324,190.27,190.23,8.51727112]
[1735618176531,2.6318,190.31,190.25,11.14977112]
[1735618176839,2.98,190.34,190.28,8.51727112]
[1735618178428,2.6317,190.33,190.28,8.51727112]
[1735618178735,2.98,190.34,190.28,8.51727112]
[1735618179035,8.51727112,190.33,190.22,1.5345]
[1735618179235,2.6325,190.26,190.25,8.51727112]
[1735618180431,2.6324,190.28,190.25,8.51727112]
[1735618180628,8.51727112,190.33,190.25,8.51727112]
[1735618180832,8.51727112,190.33,190.27,8.51727112]
[1735618181136,2.6321,190.29,190.27,8.51727112]
[1735618181933,8.51727112,190.33,190.27,8.51727112]
[1735618182129,2.98,190.36,190.29,8.51727112]
[1735618182837,10.03007112,190.37,190.29,8.51727112]
[1735618183136,10.03007112,190.37,190.31,8.51727112]
[1735618184037,2.6315,190.34,190.31,8.51727112]
[1735618184237,10.03007112,190.37,190.31,8.51727112]
[1735618185846,2.6315,190.34,190.31,8.51727112]
[1735618189354,2.6315,190.34,190.28,2.6322]
[1735618189555,2.6315,190.34,190.31,8.51727112]
[1735618191063,2.6316,190.33,190.31,8.51727112]
[1735618192058,2.6317,190.32,190.31,8.51727112]
[1735618192553,2.6317,190.32,190.29,8.51727112]
[1735618195759,10.03007112,190.37,190.29,8.51727112]
[1735618195962,2.6319,190.31,190.29,8.51727112]
[1735618196156,8.51727112,190.35,190.29,8.51727112]
[1735618197567,2.6319,190.31,190.29,8.51727112]
[1735618201265,10.03007112,190.37,190.29,11.14937112]
[1735618201467,10.03007112,190.37,190.31,8.51727112]
[1735618202965,1.5128,190.37,190.33,8.51727112]
[1735618203364,7.30966934,190.41,190.25,2.98]
[1735618203667,10.28966934,190.41,190.35,8.51727112]
[1735618204068,2.631,190.38,190.35,8.51727112]
[1735618204770,2.6307,190.4,190.35,8.51727112]
[1735618205168,2.6309,190.38,190.35,8.51727112]
[1735618205366,8.51727112,190.4,190.3,2.98]
[1735618205573,8.51727112,190.4,190.33,8.51727112]
[1735618205772,2.631,190.37,190.33,8.51727112]
[1735618205974,8.51727112,190.4,190.33,8.51727112]
[1735618206368,2.6311,190.37,190.33,8.51727112]
[1735618206868,8.51727112,190.4,190.33,8.51727112]
[1735618208375,37.72274533,190.4,190.33,8.51727112]
[1735618209370,7.30966934,190.39,190.33,8.51727112]
[1735618209573,2.6313,190.35,190.33,8.51727112]
[1735618210572,2.6311,190.37,190.33,8.51727112]
[1735618210773,2.6311,190.37,190.35,8.51727112]
[1735618212779,29.20547421,190.4,190.33,8.51727112]
[1735618212983,37.72274533,190.4,190.33,8.51727112]
[1735618213578,2.6316,190.34,190.31,8.51727112]
[1735618213779,8.51727112,190.38,190.31,8.51727112]
[1735618214077,2.6312,190.36,190.33,8.51727112]
[1735618214283,42.13839574,190.39,190.33,8.51727112]
[1735618215579,2.6314,190.34,190.33,8.51727112]
[1735618217072,7.30966934,190.38,190.33,8.51727112]
[1735618217279,7.30966934,190.38,190.37,8.51727112]
[1735618217685,7.30966934,190.38,190.37,11.14827112]
[1735618218286,7.63184171,190.42,190.37,11.14827112]
[1735618218485,7.63184171,190.42,190.39,8.51727112]
[1735618219490,2.6305,190.41,190.39,8.51727112]
[1735618219688,7.63184171,190.42,190.39,8.51727112]
[1735618220384,2.6306,190.4,190.39,8.51727112]
[1735618220890,2.6305,190.41,190.39,8.51727112]
[1735618221690,7.63184171,190.42,190.39,8.51727112]
[1735618221992,7.63184171,190.42,190.41,8.51727112]
[1735618225499,2.6303,190.42,190.39,8.51727112]
[1735618225793,2.98,190.47,190.39,8.51727112]
[1735618226089,11.49727112,190.47,190.39,8.51727112]
[1735618228095,2.6301,190.44,190.41,8.51727112]
[1735618230295,2.98,190.48,190.37,2.98]
[1735618230296,2.98,190.48,190.43,8.51727112]
[1735618230899,2.6298,190.46,190.43,8.51727112]
[1735618233400,3.71913661,190.49,190.45,8.51727112]
[1735618233595,6.34853661,190.49,190.47,8.51727112]
[1735618234309,2.98,190.54,190.47,11.14687112]
[1735618234507,2.98,190.54,190.49,8.51727112]
[1735618234703,2.98,190.53,190.49,8.51727112]
[1735618234901,2.6292,190.5,190.49,8.51727112]
[1735618235608,2.98,190.53,190.49,8.51727112]
[1735618235609,2.6291,190.51,190.49,8.51727112]
[1735618236303,2.6289,190.53,190.49,8.51727112]
[1735618236511,2.6289,190.53,190.51,8.51727112]
[1735618236913,2.6284,190.56,190.51,8.51727112]
[1735618237208,2.6284,190.56,190.53,8.51727112]
[1735618237606,32.18547421,190.61,190.55,8.51727112]
[1735618237803,0.80723743,190.6,190.57,8.51727112]
[1735618238007,29.20547421,190.61,190.57,8.51727112]
[1735618238410,29.20547421,190.61,190.59,8.51727112]
[1735618238910,2.6277,190.61,190.59,8.51727112]
[1735618239616,2.98,190.64,190.59,8.51727112]
[1735618239810,2.6278,190.6,190.59,8.51727112]
[1735618241113,2.6278,190.6,190.57,8.51727112]
[1735618241806,2.98,190.64,190.59,8.51727112]
[1735618243209,8.51727112,190.65,190.59,8.51727112]
[1735618243413,11.49727112,190.65,190.59,8.51727112]
[1735618243810,11.49727112,190.65,190.57,8.51727112]
[1735618244703,11.49727112,190.65,190.53,2.98]
[1735618244904,2.6275,190.63,190.53,2.98]
[1735618245105,2.6275,190.63,190.59,8.51727112]
[1735618246915,13.05577112,190.67,190.59,8.51727112]
[1735618246916,2.6276,190.62,190.59,8.51727112]
[1735618247504,2.6276,190.62,190.61,8.51727112]
[1735618249918,2.6276,190.62,190.59,8.51727112]
[1735618250713,2.98,190.63,190.49,1.5793]
[1735618251013,1.5585,190.67,190.61,8.51727112]
[1735618251214,2.98,190.66,190.61,8.51727112]
[1735618251406,2.6276,190.62,190.61,8.51727112]
[1735618251811,2.6276,190.62,190.59,8.51727112]
[1735618254313,2.6278,190.6,190.59,8.51727112]
[1735618257022,2.6277,190.61,190.59,8.51727112]
[1735618257220,11.49727112,190.66,190.59,8.51727112]
[1735618257616,2.6276,190.62,190.59,8.51727112]
[1735618259118,2.6277,190.61,190.59,8.51727112]
[1735618260915,11.49727112,190.66,190.53,2.98]
[1735618260916,2.628,190.6,190.57,8.51727112]
[1735618261126,2.98,190.66,190.55,8.51727112]
[1735618261127,8.51727112,190.62,190.55,8.51727112]
[1735618261323,2.98,190.66,190.57,8.51727112]
[1735618261522,2.6277,190.62,190.57,8.51727112]
[1735618261822,2.6277,190.62,190.59,8.51727112]
[1735618262216,1.5585,190.67,190.61,8.51727112]
[1735618262423,2.9857,190.68,190.61,8.51727112]
[1735618262424,14.48297112,190.68,190.61,8.51727112]
[1735618263023,2.6273,190.65,190.61,8.51727112]
[1735618263426,5.2514,190.76,190.63,8.51727112]
[1735618263621,2.6269,190.67,190.63,8.51727112]
[1735618264527,2.6268,190.68,190.65,8.51727112]
[1735618265423,2.6266,190.7,190.65,8.51727112]
[1735618266226,2.6266,190.7,190.67,8.51727112]
[1735618266427,15.74136925,190.72,190.67,8.51727112]
[1735618267026,12.76136925,190.72,190.67,8.51727112]
[1735618267230,2.6264,190.71,190.67,8.51727112]
[1735618267830,10.13506925,190.72,190.67,8.51727112]
[1735618268034,2.6265,190.7,190.67,8.51727112]
[1735618268425,10.13506925,190.72,190.67,8.51727112]
[1735618268630,2.6263,190.71,190.67,8.51727112]
[1735618270030,10.13506925,190.72,190.67,8.51727112]
[1735618270331,2.6265,190.7,190.67,8.51727112]
[1735618270527,10.13506925,190.72,190.68,2.6267]
[1735618270728,2.6263,190.71,190.67,8.51727112]
[1735618271429,10.13506925,190.72,190.69,8.51727112]
[1735618271430,12.76126925,190.72,190.69,8.51727112]
[1735618271926,2.6262,190.72,190.69,8.51727112]
[1735618274324,2.98,190.77,190.69,8.51727112]
[1735618274523,2.626,190.74,190.71,8.51727112]
[1735618274723,1.5084,190.78,190.71,8.51727112]
[1735618275230,20.3318901,190.79,190.71,8.51727112]
[1735618275635,20.3318901,190.79,190.73,8.51727112]
[1735618275831,13.08527112,190.79,190.73,8.51727112]
[1735618276032,2.98,190.79,190.73,8.51727112]
[1735618276331,2.6256,190.77,190.73,8.51727112]
[1735618276832,7.24661898,190.82,190.75,8.51727112]
[1735618277033,8.75081898,190.83,190.77,8.51727112]
[1735618278331,2.6248,190.82,190.77,11.14277112]
[1735618279131,2.6248,190.82,190.77,8.51727112]
[1735618281238,10.02147112,190.83,190.77,8.51727112]
[1735618281838,2.6252,190.8,190.77,8.51727112]
[1735618282641,2.6253,190.79,190.77,8.51727112]
[1735618283244,2.6248,190.83,190.77,8.51727112]
[1735618283443,2.6248,190.83,190.8,8.51727112]
[1735618283735,2.6246,190.84,190.8,8.51727112]
[1735618287141,13.11537112,190.87,190.8,8.51727112]
[1735618287345,2.98,190.87,190.8,8.51727112]
[1735618288443,2.6244,190.85,190.8,11.14237112]
[1735618288643,2.98,190.87,190.8,8.51727112]